[Event "*** Titled Tuesday 3|2 Blitz"]
[Site "Chess.com"]
[Date "2016.05.03"]
[Round "2"]
[White "Penguininja"]
[Black "TheLancer"]
[Result "0-1"]
[WhiteElo "2203"]
[BlackElo "2469"]
[TimeControl "180+2"]
[EndTime "17:23:13 PDT"]
[Termination "TheLancer won by resignation"]

1. d4 {[%clk 0:03:00.5]} 1... c5 {[%clk 0:03:01.1]} 2. d5 {[%clk 0:02:59.6]}
2... e5 {[%clk 0:03:02.2]} 3. c4 {[%clk 0:02:55.4]} 3... d6 {[%clk 0:02:59.4]}
4. Nc3 {[%clk 0:02:55.7]} 4... Be7 {[%clk 0:02:43.6]} 5. Qc2 {[%clk 0:02:52.6]}
5... Nf6 {[%clk 0:02:44.6]} 6. e3 {[%clk 0:02:48.5]} 6... Nbd7 {[%clk 0:02:46]}
7. Bd3 {[%clk 0:02:39.9]} 7... Nf8 {[%clk 0:02:46.8]} 8. b3 {[%clk 0:02:37.2]}
8... Ng6 {[%clk 0:02:47.9]} 9. Bb2 {[%clk 0:02:38.6]} 9... O-O {[%clk
0:02:48.5]} 10. h4 {[%clk 0:02:36.5]} 10... Re8 {[%clk 0:02:24.7]} 11. h5 {[%clk
0:02:34.1]} 11... Nf8 {[%clk 0:02:24.7]} 12. f3 {[%clk 0:02:29]} 12... a6 {[%clk
0:02:22]} 13. g4 {[%clk 0:02:27.4]} 13... h6 {[%clk 0:02:17.1]} 14. a4 {[%clk
0:02:26.5]} 14... Rb8 {[%clk 0:02:17.8]} 15. Nh3 {[%clk 0:02:07.6]} 15... N8h7
{[%clk 0:02:17.3]} 16. O-O-O {[%clk 0:01:51.6]} 16... Bd7 {[%clk 0:02:11.2]} 17.
Bf5 {[%clk 0:01:41.8]} 17... Qa5 {[%clk 0:01:52]} 18. f4 {[%clk 0:01:22.6]}
18... Bxf5 {[%clk 0:01:40.8]} 19. Qxf5 {[%clk 0:01:22.4]} 19... exf4 {[%clk
0:01:38.3]} 20. exf4 {[%clk 0:01:17.1]} 20... Bf8 {[%clk 0:01:29]} 21. g5 {[%clk
0:01:06.1]} 21... Nxh5 {[%clk 0:01:29.8]} 22. g6 {[%clk 0:00:52.3]} 22... fxg6
{[%clk 0:00:57.3]} 23. Qxg6 {[%clk 0:00:52.8]} 23... Re3 {[%clk 0:00:56.2]} 24.
Rd3 {[%clk 0:00:48.9]} 24... Rbe8 {[%clk 0:00:50.8]} 25. Rhd1 {[%clk 0:00:20.9]}
25... Rxd3 {[%clk 0:00:44.4]} 26. Qxd3 {[%clk 0:00:22.8]} 26... N7f6 {[%clk
0:00:41.4]} 27. Rg1 {[%clk 0:00:21.6]} 27... Qb4 {[%clk 0:00:33.7]} 28. Na2
{[%clk 0:00:21.4]} 28... Qa5 {[%clk 0:00:23.2]} 29. Bc3 {[%clk 0:00:22.4]} 29...
Qd8 {[%clk 0:00:23.9]} 30. Kc2 {[%clk 0:00:21.9]} 30... Qe7 {[%clk 0:00:23.8]}
31. Nc1 {[%clk 0:00:22.4]} 31... Qe4 {[%clk 0:00:23.5]} 32. Re1 {[%clk
0:00:20.4]} 32... Qxd3+ {[%clk 0:00:24.2]} 33. Nxd3 {[%clk 0:00:22.3]} 33...
Rxe1 {[%clk 0:00:24]} 34. Bxe1 {[%clk 0:00:24.2]} 34... Ne4 {[%clk 0:00:23]} 35.
Bh4 {[%clk 0:00:24.8]} 35... Kf7 {[%clk 0:00:23.5]} 36. b4 {[%clk 0:00:23.4]}
36... b6 {[%clk 0:00:20.6]} 37. bxc5 {[%clk 0:00:24]} 37... bxc5 {[%clk
0:00:21.7]} 38. f5 {[%clk 0:00:23.4]} 38... Be7 {[%clk 0:00:22.4]} 39. Be1
{[%clk 0:00:24]} 39... Kf6 {[%clk 0:00:16.8]} 40. Bh4+ {[%clk 0:00:24]} 40...
Kf7 {[%clk 0:00:18.1]} 41. Be1 {[%clk 0:00:23.9]} 41... Ng5 {[%clk 0:00:18]} 42.
Nhf4 {[%clk 0:00:23.8]} 42... Nxf4 {[%clk 0:00:18.5]} 43. Nxf4 {[%clk
0:00:25.7]} 43... Bf6 {[%clk 0:00:19.6]} 44. Ne6 {[%clk 0:00:25.6]} 44... Nf3
{[%clk 0:00:19.5]} 45. Bf2 {[%clk 0:00:26.1]} 45... Be5 {[%clk 0:00:20.2]} 46.
Kd3 {[%clk 0:00:27]} 46... Kf6 {[%clk 0:00:20.9]} 47. Nc7 {[%clk 0:00:26.4]}
47... Kxf5 {[%clk 0:00:21.3]} 48. Nxa6 {[%clk 0:00:27]} 48... g5 {[%clk
0:00:21.7]} 49. Nc7 {[%clk 0:00:26.7]} 49... Bf6 {[%clk 0:00:21.7]} 50. Ne6
{[%clk 0:00:26.2]} 50... Ne5+ {[%clk 0:00:19.6]} 51. Ke2 {[%clk 0:00:21]} 51...
Nxc4 {[%clk 0:00:20.6]} 52. Be1 {[%clk 0:00:18.5]} 52... Ke5 {[%clk 0:00:20.5]}
53. Nc7 {[%clk 0:00:19.9]} 53... g4 {[%clk 0:00:20.3]} 54. Bc3+ {[%clk
0:00:20.7]} 54... Kf5 {[%clk 0:00:21.2]} 55. Be1 {[%clk 0:00:21.9]} 55... h5
{[%clk 0:00:22.2]} 56. a5 {[%clk 0:00:23.4]} 56... h4 {[%clk 0:00:20.1]} 57. a6
{[%clk 0:00:23.7]} 57... g3 {[%clk 0:00:18.7]} 58. a7 {[%clk 0:00:24.4]} 58...
Nb6 {[%clk 0:00:19.8]} 59. Nb5 {[%clk 0:00:24.2]} 59... Be5 {[%clk 0:00:19]} 60.
Kf3 {[%clk 0:00:25.3]} 60... h3 {[%clk 0:00:16.8]} 61. Bxg3 {[%clk 0:00:13.6]}
61... h2 {[%clk 0:00:18]} 62. Bxh2 {[%clk 0:00:10.6]} 62... Bxh2 {[%clk
0:00:19.9]} 63. Nc7 {[%clk 0:00:10.8]} 63... Ke5 {[%clk 0:00:18.1]} 64. a8=Q
{[%clk 0:00:10.4]} 64... Nxa8 {[%clk 0:00:18.7]} 65. Nxa8 {[%clk 0:00:12.3]}
65... Kxd5 {[%clk 0:00:20.5]} 66. Nb6+ {[%clk 0:00:11.8]} 66... Kc6 {[%clk
0:00:21.6]} 67. Nc4 {[%clk 0:00:12.8]} 67... d5 {[%clk 0:00:22.3]} 68. Nd2
{[%clk 0:00:14.7]} 68... Be5 {[%clk 0:00:23.2]} 69. Ke2 {[%clk 0:00:16.1]} 69...
c4 {[%clk 0:00:24.4]} 70. Nf3 {[%clk 0:00:17.3]} 70... Bf6 {[%clk 0:00:24.4]}
71. Kd2 {[%clk 0:00:19.2]} 71... Kc5 {[%clk 0:00:25.8]} 72. Kc2 {[%clk
0:00:20.5]} 72... d4 {[%clk 0:00:26.9]} 73. Nd2 {[%clk 0:00:22.4]} 73... d3+
{[%clk 0:00:27.7]} 74. Kd1 {[%clk 0:00:23.9]} 74... Kd4 {[%clk 0:00:26.5]} 75.
Nf3+ {[%clk 0:00:24.4]} 75... Ke3 {[%clk 0:00:26.6]} 76. Nd2 {[%clk 0:00:26]}
76... c3 {[%clk 0:00:27]} 77. Nc4+ {[%clk 0:00:27.5]} 77... Kd4 {[%clk
0:00:27.7]} 78. Na3 {[%clk 0:00:29.1]} 78... Bg5 {[%clk 0:00:27.7]} 79. Nb5+
{[%clk 0:00:30.4]} 79... Kc4 {[%clk 0:00:29]} 80. Nd6+ {[%clk 0:00:31.2]} 80...
Kb3 {[%clk 0:00:29.2]} 0-1

[Event "*** Titled Tuesday 3|2 Blitz"]
[Site "Chess.com"]
[Date "2016.05.03"]
[Round "2"]
[White "Noukii"]
[Black "yarosavich"]
[Result "0-1"]
[WhiteElo "2712"]
[BlackElo "2540"]
[TimeControl "180+2"]
[EndTime "17:24:42 PDT"]
[Termination "yarosavich won by resignation"]

1. d4 {[%clk 0:03:01.9]} 1... d5 {[%clk 0:03:00.5]} 2. Nf3 {[%clk 0:03:00.9]}
2... Nf6 {[%clk 0:03:01.4]} 3. c4 {[%clk 0:03:02.1]} 3... e6 {[%clk 0:03:02.1]}
4. g3 {[%clk 0:03:03.1]} 4... dxc4 {[%clk 0:03:02.8]} 5. Bg2 {[%clk 0:03:04.6]}
5... a6 {[%clk 0:03:03.6]} 6. O-O {[%clk 0:03:04.8]} 6... Nc6 {[%clk 0:03:04.8]}
7. Nc3 {[%clk 0:03:01.3]} 7... Rb8 {[%clk 0:03:03.4]} 8. e4 {[%clk 0:02:42.3]}
8... Be7 {[%clk 0:03:04]} 9. Qe2 {[%clk 0:02:38.1]} 9... b5 {[%clk 0:03:04.6]}
10. Rd1 {[%clk 0:02:37.9]} 10... O-O {[%clk 0:03:02.6]} 11. a3 {[%clk
0:02:32.9]} 11... Bb7 {[%clk 0:02:52]} 12. Bf4 {[%clk 0:02:31.8]} 12... Re8
{[%clk 0:02:49.4]} 13. h3 {[%clk 0:02:28.4]} 13... Na5 {[%clk 0:02:41.7]} 14.
Re1 {[%clk 0:02:28.8]} 14... Rc8 {[%clk 0:02:37.5]} 15. Rad1 {[%clk 0:02:29.8]}
15... Nd7 {[%clk 0:02:28.1]} 16. h4 {[%clk 0:02:19.5]} 16... Bd6 {[%clk
0:02:24.8]} 17. Bg5 {[%clk 0:02:17.2]} 17... f6 {[%clk 0:02:15.4]} 18. e5 {[%clk
0:02:17.8]} 18... fxg5 {[%clk 0:02:07]} 19. exd6 {[%clk 0:02:18.5]} 19... g4
{[%clk 0:02:08.4]} 20. dxc7 {[%clk 0:01:36.6]} 20... Qxc7 {[%clk 0:02:08.9]} 21.
Ne5 {[%clk 0:01:32.3]} 21... Bxg2 {[%clk 0:02:02.1]} 22. Kxg2 {[%clk 0:01:34.2]}
22... Nxe5 {[%clk 0:01:58.9]} 23. dxe5 {[%clk 0:01:34.7]} 23... Nc6 {[%clk
0:01:52.5]} 24. Rd6 {[%clk 0:01:29.4]} 24... Rcd8 {[%clk 0:01:44.9]} 25. Red1
{[%clk 0:01:26.8]} 25... Rxd6 {[%clk 0:01:38.1]} 26. exd6 {[%clk 0:01:28.7]}
26... Qd7 {[%clk 0:01:38.4]} 27. Kh2 {[%clk 0:01:13.3]} 27... e5 {[%clk
0:01:32.8]} 28. Qe4 {[%clk 0:01:10.7]} 28... Nd4 {[%clk 0:01:26.8]} 29. Qd5+
{[%clk 0:01:11.9]} 29... Qf7 {[%clk 0:01:13.4]} 30. Rxd4 {[%clk 0:00:44.7]}
30... exd4 {[%clk 0:01:08.6]} 31. Qxd4 {[%clk 0:00:45.7]} 31... Qe6 {[%clk
0:01:03.4]} 32. Kg2 {[%clk 0:00:40.2]} 32... h5 {[%clk 0:01:01.9]} 33. Kh2
{[%clk 0:00:37.7]} 33... Rf8 {[%clk 0:00:58.4]} 34. Ne4 {[%clk 0:00:37.1]} 34...
Re8 {[%clk 0:00:51.7]} 35. d7 {[%clk 0:00:36.9]} 35... Rd8 {[%clk 0:00:53]} 36.
Nc5 {[%clk 0:00:38.1]} 36... Qf6 {[%clk 0:00:49.4]} 37. Qd5+ {[%clk 0:00:36.4]}
37... Qf7 {[%clk 0:00:51]} 38. Qd4 {[%clk 0:00:37.1]} 38... Qf6 {[%clk
0:00:47.7]} 39. Qe3 {[%clk 0:00:38.1]} 39... Kf7 {[%clk 0:00:40]} 40. Kg1 {[%clk
0:00:36.4]} 40... a5 {[%clk 0:00:33.9]} 41. Qe4 {[%clk 0:00:34]} 41... g6 {[%clk
0:00:24.8]} 42. Qd5+ {[%clk 0:00:34.2]} 42... Ke7 {[%clk 0:00:23.9]} 43. a4
{[%clk 0:00:30.6]} 43... bxa4 {[%clk 0:00:21.2]} 44. Qxc4 {[%clk 0:00:30.6]}
44... Qe5 {[%clk 0:00:18.1]} 45. Kh2 {[%clk 0:00:26.5]} 45... Rxd7 {[%clk
0:00:10.2]} 46. Nxd7 {[%clk 0:00:27.6]} 46... Kxd7 {[%clk 0:00:12.1]} 47. Qxa4+
{[%clk 0:00:28.2]} 47... Ke7 {[%clk 0:00:13.5]} 48. Qa3+ {[%clk 0:00:25.1]}
48... Kf7 {[%clk 0:00:13.5]} 49. Qb3+ {[%clk 0:00:24.3]} 49... Ke7 {[%clk
0:00:14.4]} 50. Qb7+ {[%clk 0:00:21.3]} 50... Kf6 {[%clk 0:00:14.7]} 51. Kg2
{[%clk 0:00:22.8]} 51... Qc5 {[%clk 0:00:11]} 52. b3 {[%clk 0:00:23.2]} 52...
Qe5 {[%clk 0:00:10.8]} 53. Kf1 {[%clk 0:00:21.3]} 53... Qa1+ {[%clk 0:00:10.7]}
54. Ke2 {[%clk 0:00:22.7]} 54... Qe5+ {[%clk 0:00:11.7]} 55. Kd3 {[%clk
0:00:21.5]} 55... Qf5+ {[%clk 0:00:12.2]} 56. Ke2 {[%clk 0:00:22.9]} 56... Qe5+
{[%clk 0:00:13.5]} 57. Kf1 {[%clk 0:00:24.8]} 57... Qa1+ {[%clk 0:00:14.4]} 58.
Kg2 {[%clk 0:00:26.1]} 58... Qe5 {[%clk 0:00:16.1]} 59. Qc6+ {[%clk 0:00:27.2]}
59... Kf7 {[%clk 0:00:14.8]} 60. Qc4+ {[%clk 0:00:23.9]} 60... Kf6 {[%clk
0:00:15]} 61. Kf1 {[%clk 0:00:25.6]} 61... Qa1+ {[%clk 0:00:14.8]} 62. Ke2
{[%clk 0:00:27.2]} 62... Qe5+ {[%clk 0:00:16.5]} 63. Kd3 {[%clk 0:00:28.4]}
63... Qf5+ {[%clk 0:00:17.4]} 64. Ke3 {[%clk 0:00:29.5]} 64... Qf3+ {[%clk
0:00:18.2]} 65. Kd4 {[%clk 0:00:26.5]} 65... Qxf2+ {[%clk 0:00:19.2]} 66. Kd5
{[%clk 0:00:27.8]} 66... Qf5+ {[%clk 0:00:16.4]} 67. Kc6 {[%clk 0:00:22.3]}
67... Qf3+ {[%clk 0:00:14.9]} 68. Kd7 {[%clk 0:00:21.5]} 68... Qb7+ {[%clk
0:00:11.6]} 69. Kd6 {[%clk 0:00:22.8]} 69... Qb6+ {[%clk 0:00:10.9]} 70. Kd7
{[%clk 0:00:20.1]} 70... Qb7+ {[%clk 0:00:12.1]} 71. Kd6 {[%clk 0:00:20.8]}
71... Qe7+ {[%clk 0:00:13.1]} 72. Kc6 {[%clk 0:00:21.2]} 72... Qe5 {[%clk
0:00:10.5]} 73. Qd3 {[%clk 0:00:18.3]} 73... Qe6+ {[%clk 0:00:08.5]} 74. Kc7
{[%clk 0:00:19.2]} 74... Qe5+ {[%clk 0:00:08.5]} 75. Kc6 {[%clk 0:00:20.5]}
75... Qe6+ {[%clk 0:00:09.7]} 76. Kc7 {[%clk 0:00:21.9]} 76... Qe5+ {[%clk
0:00:09.5]} 77. Kb6 {[%clk 0:00:23.5]} 77... g5 {[%clk 0:00:07.1]} 78. Qd8+
{[%clk 0:00:20.6]} 78... Kf7 {[%clk 0:00:08]} 79. hxg5 {[%clk 0:00:18.7]} 79...
Qe3+ {[%clk 0:00:05.6]} 80. Kxa5 {[%clk 0:00:18.3]} 80... Qxb3 {[%clk
0:00:04.2]} 81. Qf6+ {[%clk 0:00:19.1]} 81... Kg8 {[%clk 0:00:05.5]} 82. g6
{[%clk 0:00:19.3]} 82... Qa3+ {[%clk 0:00:05.7]} 83. Kb5 {[%clk 0:00:20.9]}
83... Qb3+ {[%clk 0:00:07]} 84. Kc5 {[%clk 0:00:22.4]} 84... Qe3+ {[%clk
0:00:06.4]} 85. Kd5 {[%clk 0:00:19]} 85... Qd3+ {[%clk 0:00:07.2]} 86. Ke6
{[%clk 0:00:20]} 86... Qe4+ {[%clk 0:00:06.6]} 87. Kd6 {[%clk 0:00:18]} 87...
Qd3+ {[%clk 0:00:07.7]} 88. Kc5 {[%clk 0:00:18.8]} 88... Qe3+ {[%clk 0:00:07.8]}
89. Kd5 {[%clk 0:00:20.1]} 89... Qd3+ {[%clk 0:00:08.4]} 90. Ke5 {[%clk
0:00:21.6]} 90... Qc3+ {[%clk 0:00:04.1]} 91. Kf5 {[%clk 0:00:22.5]} 91... Qxf6+
{[%clk 0:00:06]} 92. Kxf6 {[%clk 0:00:24]} 92... h4 {[%clk 0:00:07.9]} 93. gxh4
{[%clk 0:00:25.4]} 93... g3 {[%clk 0:00:09.8]} 94. h5 {[%clk 0:00:27.3]} 94...
g2 {[%clk 0:00:11.4]} 95. h6 {[%clk 0:00:29.2]} 95... g1=Q {[%clk 0:00:12.8]}
96. h7+ {[%clk 0:00:30.5]} 96... Kh8 {[%clk 0:00:14.3]} 97. Kf7 {[%clk
0:00:32.3]} 97... Qf2+ {[%clk 0:00:15.2]} 98. Ke8 {[%clk 0:00:33.8]} 98... Qf6
{[%clk 0:00:14.3]} 0-1

[Event "*** Titled Tuesday 3|2 Blitz"]
[Site "Chess.com"]
[Date "2016.05.03"]
[Round "2"]
[White "Zlatan56"]
[Black "pKiLz5Rn9b"]
[Result "1/2-1/2"]
[WhiteElo "2570"]
[BlackElo "2412"]
[TimeControl "180+2"]
[EndTime "17:26:46 PDT"]
[Termination "Game drawn - insufficient material"]

1. g3 {[%clk 0:03:01.9]} 1... Nf6 {[%clk 0:03:00.3]} 2. Bg2 {[%clk 0:03:02.3]}
2... d5 {[%clk 0:03:01.1]} 3. Nf3 {[%clk 0:03:02.6]} 3... e6 {[%clk 0:03:02.5]}
4. O-O {[%clk 0:03:03.8]} 4... Be7 {[%clk 0:03:04.1]} 5. d3 {[%clk 0:03:04.9]}
5... O-O {[%clk 0:03:05.6]} 6. Nbd2 {[%clk 0:03:06.3]} 6... b5 {[%clk
0:03:06.4]} 7. e4 {[%clk 0:03:07]} 7... c5 {[%clk 0:03:07.3]} 8. e5 {[%clk
0:03:07.6]} 8... Nfd7 {[%clk 0:03:08.2]} 9. Re1 {[%clk 0:03:08.6]} 9... Nc6
{[%clk 0:03:09.2]} 10. Nf1 {[%clk 0:03:08.6]} 10... b4 {[%clk 0:03:10.2]} 11. h4
{[%clk 0:03:09.2]} 11... a5 {[%clk 0:03:10]} 12. N1h2 {[%clk 0:03:09.7]} 12...
Re8 {[%clk 0:03:10.8]} 13. h5 {[%clk 0:03:10]} 13... h6 {[%clk 0:03:11.9]} 14.
Ng4 {[%clk 0:03:08.5]} 14... Bf8 {[%clk 0:03:13.4]} 15. c4 {[%clk 0:03:08.1]}
15... bxc3 {[%clk 0:03:11.5]} 16. bxc3 {[%clk 0:03:08.3]} 16... Ba6 {[%clk
0:03:13.1]} 17. Bf4 {[%clk 0:03:04.2]} 17... a4 {[%clk 0:03:13.1]} 18. Qxa4
{[%clk 0:02:57.7]} 18... Bxd3 {[%clk 0:02:57.2]} 19. Qxc6 {[%clk 0:02:43.2]}
19... Ra6 {[%clk 0:02:57]} 20. Qb7 {[%clk 0:02:27.6]} 20... Rb6 {[%clk
0:02:57.8]} 21. Qa7 {[%clk 0:02:28.6]} 21... Ra6 {[%clk 0:02:58.9]} 22. Qxa6
{[%clk 0:02:18.6]} 22... Bxa6 {[%clk 0:02:59.4]} 23. a4 {[%clk 0:02:19.1]} 23...
Qa5 {[%clk 0:02:54]} 24. Bd2 {[%clk 0:02:16.1]} 24... Bd3 {[%clk 0:02:43.3]} 25.
c4 {[%clk 0:02:12.7]} 25... Qa6 {[%clk 0:02:43.2]} 26. cxd5 {[%clk 0:02:11.8]}
26... exd5 {[%clk 0:02:44.2]} 27. a5 {[%clk 0:01:53.5]} 27... Bf5 {[%clk
0:02:26.1]} 28. Ne3 {[%clk 0:01:47]} 28... Be4 {[%clk 0:02:26.8]} 29. Bf1 {[%clk
0:01:10]} 29... c4 {[%clk 0:02:25.1]} 30. Nxc4 {[%clk 0:01:00.3]} 30... Bxf3
{[%clk 0:01:56.2]} 31. Nd6 {[%clk 0:01:00.1]} 31... Qa8 {[%clk 0:01:27.6]} 32.
Nxe8 {[%clk 0:01:00.5]} 32... Qxe8 {[%clk 0:01:29.5]} 33. a6 {[%clk 0:01:01.7]}
33... Bc5 {[%clk 0:01:21.5]} 34. a7 {[%clk 0:00:53.1]} 34... Bxa7 {[%clk
0:01:00.2]} 35. Rxa7 {[%clk 0:00:52.4]} 35... Nxe5 {[%clk 0:00:59.9]} 36. Bd3
{[%clk 0:00:24.4]} 36... Be4 {[%clk 0:00:51.8]} 37. Be2 {[%clk 0:00:24.9]} 37...
Qe6 {[%clk 0:00:46.3]} 38. Bd1 {[%clk 0:00:15.6]} 38... Qh3 {[%clk 0:00:43.7]}
39. Rxe4 {[%clk 0:00:16]} 39... dxe4 {[%clk 0:00:45.6]} 40. Ra3 {[%clk
0:00:16.1]} 40... Nf3+ {[%clk 0:00:45.5]} 41. Bxf3 {[%clk 0:00:16.1]} 41... exf3
{[%clk 0:00:47.4]} 42. Rxf3 {[%clk 0:00:17]} 42... Qxh5 {[%clk 0:00:49]} 43. Rd3
{[%clk 0:00:14.8]} 43... Qd1+ {[%clk 0:00:47.9]} 44. Kg2 {[%clk 0:00:15.7]}
44... Qe2 {[%clk 0:00:49.5]} 45. Rd4 {[%clk 0:00:16.7]} 45... Kh7 {[%clk
0:00:45.2]} 46. Be3 {[%clk 0:00:17.7]} 46... Qa6 {[%clk 0:00:45.3]} 47. Rf4
{[%clk 0:00:18]} 47... Qc6+ {[%clk 0:00:45.3]} 48. Kh2 {[%clk 0:00:18.8]} 48...
Qd5 {[%clk 0:00:46.5]} 49. Kg1 {[%clk 0:00:19.2]} 49... f5 {[%clk 0:00:45.6]}
50. Rd4 {[%clk 0:00:19.6]} 50... Qb5 {[%clk 0:00:46.1]} 51. Rd2 {[%clk
0:00:18.8]} 51... g5 {[%clk 0:00:45.8]} 52. Rd4 {[%clk 0:00:19.4]} 52... Kg6
{[%clk 0:00:46.4]} 53. Kg2 {[%clk 0:00:20]} 53... Kh5 {[%clk 0:00:46.7]} 54. Kg1
{[%clk 0:00:18.7]} 54... f4 {[%clk 0:00:30]} 55. gxf4 {[%clk 0:00:18.8]} 55...
Kg4 {[%clk 0:00:27.6]} 56. fxg5+ {[%clk 0:00:18.6]} 56... Kh3 {[%clk 0:00:28.7]}
57. Rd1 {[%clk 0:00:09.5]} 57... Qe2 {[%clk 0:00:19.7]} 58. Rc1 {[%clk
0:00:10.5]} 58... hxg5 {[%clk 0:00:16.7]} 59. Bxg5 {[%clk 0:00:07.3]} 59... Qg4+
{[%clk 0:00:16.9]} 60. Kf1 {[%clk 0:00:08.5]} 60... Qg2+ {[%clk 0:00:16.7]} 61.
Ke2 {[%clk 0:00:08.7]} 61... Qxg5 {[%clk 0:00:14.8]} 62. Rc3+ {[%clk 0:00:09.5]}
62... Kh2 {[%clk 0:00:15.9]} 63. Rg3 {[%clk 0:00:11]} 63... Qe5+ {[%clk
0:00:17]} 64. Kf3 {[%clk 0:00:12]} 64... Qf5+ {[%clk 0:00:17.8]} 65. Ke3 {[%clk
0:00:13]} 65... Qc5+ {[%clk 0:00:18.7]} 66. Kf3 {[%clk 0:00:13.7]} 66... Qd4
{[%clk 0:00:20]} 67. Rg2+ {[%clk 0:00:14.1]} 67... Kh1 {[%clk 0:00:20.8]} 68.
Rg3 {[%clk 0:00:15.1]} 68... Qd3+ {[%clk 0:00:21.7]} 69. Kf4 {[%clk 0:00:15.2]}
69... Qe2 {[%clk 0:00:23.1]} 70. f3 {[%clk 0:00:13.3]} 70... Kh2 {[%clk
0:00:24.1]} 71. Rg4 {[%clk 0:00:13.8]} 71... Qd2+ {[%clk 0:00:21.7]} 72. Ke4
{[%clk 0:00:14.4]} 72... Qb4+ {[%clk 0:00:21.7]} 73. Kf5 {[%clk 0:00:15]} 73...
Qc5+ {[%clk 0:00:23.3]} 74. Kf4 {[%clk 0:00:16.2]} 74... Kh3 {[%clk 0:00:23.1]}
75. Ke4 {[%clk 0:00:16.3]} 75... Qc4+ {[%clk 0:00:22.2]} 76. Ke3 {[%clk
0:00:17.1]} 76... Qe6+ {[%clk 0:00:22.3]} 77. Kf4 {[%clk 0:00:17.6]} 77... Qe2
{[%clk 0:00:19.4]} 78. Rg3+ {[%clk 0:00:15.8]} 78... Kh4 {[%clk 0:00:20.3]} 79.
Rg4+ {[%clk 0:00:17]} 79... Kh5 {[%clk 0:00:21.3]} 80. Rg5+ {[%clk 0:00:18.2]}
80... Kh6 {[%clk 0:00:22.7]} 81. Rg4 {[%clk 0:00:19.5]} 81... Qd2+ {[%clk
0:00:21.5]} 82. Kg3 {[%clk 0:00:20.4]} 82... Kh5 {[%clk 0:00:20.7]} 83. Re4
{[%clk 0:00:12.7]} 83... Kg5 {[%clk 0:00:19.9]} 84. Rg4+ {[%clk 0:00:13.4]}
84... Kf5 {[%clk 0:00:21.3]} 85. Re4 {[%clk 0:00:14.9]} 85... Qg5+ {[%clk
0:00:19.8]} 86. Kf2 {[%clk 0:00:15.5]} 86... Qh5 {[%clk 0:00:18.7]} 87. Kg3
{[%clk 0:00:14.5]} 87... Qh1 {[%clk 0:00:19.4]} 88. Kf2 {[%clk 0:00:14.9]} 88...
Qh2+ {[%clk 0:00:19.7]} 89. Ke3 {[%clk 0:00:15.1]} 89... Qg2 {[%clk 0:00:20]}
90. Rg4 {[%clk 0:00:15.8]} 90... Qb2 {[%clk 0:00:17.5]} 91. Re4 {[%clk 0:00:16]}
91... Qc3+ {[%clk 0:00:16.6]} 92. Kf2 {[%clk 0:00:16.8]} 92... Qd2+ {[%clk
0:00:17.6]} 93. Kg3 {[%clk 0:00:17.8]} 93... Qc1 {[%clk 0:00:18.6]} 94. Kf2
{[%clk 0:00:18.5]} 94... Qh6 {[%clk 0:00:18.5]} 95. Kg3 {[%clk 0:00:19.3]} 95...
Qh1 {[%clk 0:00:19.7]} 96. Rf4+ {[%clk 0:00:19.1]} 96... Ke5 {[%clk 0:00:19.8]}
97. Re4+ {[%clk 0:00:21]} 97... Kd5 {[%clk 0:00:21.3]} 98. Kf2 {[%clk
0:00:21.7]} 98... Qh2+ {[%clk 0:00:22.1]} 99. Ke3 {[%clk 0:00:22.8]} 99... Qg3
{[%clk 0:00:18.5]} 100. Rg4 {[%clk 0:00:22.4]} 100... Qe1+ {[%clk 0:00:18.9]}
101. Kd3 {[%clk 0:00:23]} 101... Qf2 {[%clk 0:00:12.4]} 102. Rg5+ {[%clk
0:00:23.3]} 102... Ke6 {[%clk 0:00:12.8]} 103. Ke4 {[%clk 0:00:24.4]} 103...
Qe2+ {[%clk 0:00:14]} 104. Kf4 {[%clk 0:00:25.4]} 104... Qd2+ {[%clk 0:00:13.9]}
105. Kg4 {[%clk 0:00:16]} 105... Qd4+ {[%clk 0:00:14]} 106. f4 {[%clk
0:00:15.5]} 106... Qg1+ {[%clk 0:00:15.1]} 107. Kf3 {[%clk 0:00:15.9]} 107...
Qf1+ {[%clk 0:00:16.3]} 108. Ke3 {[%clk 0:00:15.5]} 108... Kf6 {[%clk
0:00:17.2]} 109. Re5 {[%clk 0:00:15.8]} 109... Qe1+ {[%clk 0:00:16.7]} 110. Kf3
{[%clk 0:00:16.8]} 110... Qd1+ {[%clk 0:00:17]} 111. Kg3 {[%clk 0:00:17.4]}
111... Qd3+ {[%clk 0:00:16.8]} 112. Kg4 {[%clk 0:00:18.3]} 112... Qg6+ {[%clk
0:00:17.4]} 113. Kf3 {[%clk 0:00:19.4]} 113... Qh6 {[%clk 0:00:17.6]} 114. Rg5
{[%clk 0:00:19.4]} 114... Qh1+ {[%clk 0:00:17.7]} 115. Ke3 {[%clk 0:00:20]}
115... Ke6 {[%clk 0:00:18]} 116. Re5+ {[%clk 0:00:19.9]} 116... Kd6 {[%clk
0:00:19.5]} 117. Rg5 {[%clk 0:00:21.8]} 117... Qe1+ {[%clk 0:00:20.1]} 118. Kf3
{[%clk 0:00:22.6]} 118... Ke6 {[%clk 0:00:21.6]} 119. Re5+ {[%clk 0:00:22.7]}
119... Qxe5 {[%clk 0:00:22.7]} 120. fxe5 {[%clk 0:00:23.5]} 120... Kxe5 {[%clk
0:00:24.6]} 1/2-1/2

[Event "*** Titled Tuesday 3|2 Blitz"]
[Site "Chess.com"]
[Date "2016.05.03"]
[Round "3"]
[White "fourqueens13"]
[Black "zanbato17"]
[Result "1-0"]
[WhiteElo "2265"]
[BlackElo "2192"]
[TimeControl "180+2"]
[EndTime "17:31:34 PDT"]
[Termination "fourqueens13 won by resignation"]

1. c4 {[%clk 0:03:01.9]} 1... e6 {[%clk 0:03:00.7]} 2. g3 {[%clk 0:03:02.4]}
2... d5 {[%clk 0:03:01.7]} 3. Bg2 {[%clk 0:03:03.5]} 3... Nf6 {[%clk 0:03:01.6]}
4. d4 {[%clk 0:03:03]} 4... Be7 {[%clk 0:02:55.1]} 5. Nf3 {[%clk 0:03:03.3]}
5... O-O {[%clk 0:02:55.4]} 6. O-O {[%clk 0:03:03.3]} 6... b6 {[%clk 0:02:54.9]}
7. Nc3 {[%clk 0:03:01.4]} 7... Bb7 {[%clk 0:02:52.3]} 8. Ne5 {[%clk 0:03:02.2]}
8... Nbd7 {[%clk 0:02:53.2]} 9. cxd5 {[%clk 0:02:58.4]} 9... exd5 {[%clk
0:02:52.8]} 10. Bg5 {[%clk 0:02:51.9]} 10... h6 {[%clk 0:02:52.9]} 11. Bxf6
{[%clk 0:02:52.4]} 11... Nxf6 {[%clk 0:02:53.7]} 12. f4 {[%clk 0:02:52.8]} 12...
Re8 {[%clk 0:02:54.3]} 13. e3 {[%clk 0:02:52.2]} 13... Bb4 {[%clk 0:02:51.3]}
14. Rc1 {[%clk 0:02:48.9]} 14... Bxc3 {[%clk 0:02:51.4]} 15. Rxc3 {[%clk
0:02:49.5]} 15... Rc8 {[%clk 0:02:52.3]} 16. Qc2 {[%clk 0:02:47.7]} 16... Nd7
{[%clk 0:02:46.5]} 17. Bh3 {[%clk 0:02:39.6]} 17... Qe7 {[%clk 0:02:37.6]} 1-0